bitfinex/quotes_ETHUSD_20250806
["timestamp","ask_amount","ask_price","bid_price","bid_amount"]
[1754442015769,3.48532621,3577.4,3577.3,0.0612]
[1754442015974,11.5669323,3577.4,3577.3,0.0612]
[1754442016183,11.5317122,3577.4,3577.3,0.0612]
[1754442016389,10.83732621,3577.4,3577.3,0.0612]
[1754442016570,6.91491067,3577.4,3577.3,0.0612]
[1754442016791,10.28732621,3577.4,3577.3,0.0612]
[1754442017794,11.03902621,3577.4,3577.3,0.0612]
[1754442018403,11.29626681,3577.4,3577.3,0.0612]
[1754442018568,10.54456531,3577.4,3577.3,0.0612]
[1754442019168,10.28732621,3577.4,3577.3,0.0612]
[1754442019503,11.70599694,3577.4,3577.3,0.0612]
[1754442020002,12.14308307,3577.4,3577.3,0.0612]
[1754442020207,12.69308307,3577.4,3577.3,0.0612]
[1754442020423,6.34540435,3577.3,3577.2,1e-08]
[1754442020726,12.28721681,3577.3,3577.2,1e-08]
[1754442020878,9.34021681,3577.3,3577.2,1e-08]
[1754442021078,12.28721681,3577.3,3577.2,1e-08]
[1754442021700,23.13294081,3577.3,3577.2,1e-08]
[1754442022313,3.3456388,3577.0,3576.9,1e-08]
[1754442022515,8.12976471,3577.0,3576.9,1e-08]
[1754442022812,9.28361923,3577.0,3576.9,1e-08]
[1754442023011,26.07634323,3577.0,3576.9,1e-08]
[1754442023870,2.79626419,3576.2,3575.8,0.002]
[1754442024071,10.32321749,3576.2,3575.8,0.002]
[1754442024275,11.73333577,3576.2,3575.8,0.002]
[1754442024519,12.28333577,3576.2,3575.8,0.002]
[1754442026846,23.12905977,3576.2,3576.1,1e-08]
[1754442027047,6.34649878,3575.9,3575.8,1e-08]
[1754442027349,21.94049436,3575.9,3575.8,1e-08]
[1754442027647,23.12929436,3575.9,3575.8,1e-08]
[1754442027951,24.99935151,3575.9,3575.8,1e-08]
[1754442029098,20.64735151,3575.9,3575.8,1e-08]
[1754442029324,25.00035151,3575.9,3575.8,1e-08]
[1754442029698,19.45855151,3575.9,3575.8,1e-08]
[1754442029905,10.54577036,3575.9,3575.8,1e-08]
[1754442030210,12.02829878,3575.9,3575.8,1e-08]
[1754442030414,23.12908198,3575.9,3575.8,1e-08]
[1754442031236,23.59808198,3575.9,3575.8,1e-08]
[1754442031801,19.24508198,3575.9,3575.8,1e-08]
[1754442032001,33.03974384,3575.9,3575.8,1e-08]
[1754442032452,31.30194384,3575.9,3575.8,1e-08]
[1754442032600,20.45621984,3575.9,3575.8,1e-08]
[1754442032804,22.19501984,3575.9,3575.8,1e-08]
[1754442033041,33.04074384,3575.9,3575.8,1e-08]
[1754442033604,21.75791984,3575.9,3575.8,1e-08]
[1754442033903,22.19501984,3575.9,3575.8,1e-08]
[1754442034751,21.75791984,3575.9,3575.8,1e-08]
[1754442034908,16.65321984,3575.9,3575.8,1e-08]
[1754442035246,16.98721984,3575.9,3575.8,1e-08]
[1754442035556,17.53721984,3575.9,3575.8,1e-08]
[1754442035844,18.28891984,3575.9,3575.8,1e-08]
[1754442036158,21.28891984,3575.9,3575.8,1e-08]
[1754442036657,20.53721984,3575.9,3575.8,1e-08]
[1754442036854,19.98721984,3575.9,3575.8,1e-08]
[1754442037149,17.80874755,3575.9,3575.8,1e-08]
[1754442037349,18.99654755,3575.9,3575.8,1e-08]
[1754442037754,18.55944755,3575.9,3575.8,1e-08]
[1754442037957,12.90574755,3575.9,3575.8,1e-08]
[1754442038120,17.25774755,3575.9,3575.8,1e-08]
[1754442038449,21.28086316,3575.9,3575.8,1e-08]
[1754442038655,21.71796316,3575.9,3575.8,1e-08]
[1754442038837,20.52916316,3575.9,3575.8,1e-08]
[1754442039155,19.97916316,3575.9,3575.8,1e-08]
[1754442041639,21.71796316,3575.9,3575.8,1e-08]
[1754442042928,16.17716316,3575.9,3575.8,1e-08]
[1754442043131,17.25774755,3575.9,3575.8,1e-08]
[1754442044257,17.25674755,3575.9,3575.8,0.93160001]
[1754442044632,17.25674755,3575.9,3575.8,0.46300001]
[1754442044870,17.25674755,3575.9,3575.8,1e-08]
[1754442045373,17.20954755,3575.9,3575.8,1e-08]
[1754442046557,7.10924877,3575.9,3575.8,0.93160001]
[1754442046865,11.46024877,3575.9,3575.8,0.93160001]
[1754442047066,4.74624877,3575.9,3575.8,0.93160001]
[1754442047267,0.39524877,3575.9,3575.8,0.93160001]
[1754442047470,4.74624877,3575.9,3575.8,4.10099685]
[1754442047637,4.74624877,3575.9,3575.8,3.72817699]
[1754442047834,4.491,3575.9,3575.8,3.72817699]
[1754442048837,4.491,3575.9,3575.8,3.26517699]
[1754442049075,4.491,3575.9,3575.8,4.33436706]
[1754442049435,0.14,3575.9,3575.8,4.33436706]
[1754442050060,0.14,3575.9,3575.8,1.53779008]
[1754442050266,0.14,3575.9,3575.8,4.33436706]
[1754442050569,0.14,3575.9,3575.8,3.72817699]
[1754442050759,0.14,3575.9,3575.8,0.93160001]
[1754442051275,4.49,3575.9,3575.8,1e-08]
[1754442051591,7.54345076,3575.9,3575.8,1e-08]
[1754442051785,4.74695198,3575.9,3575.8,1e-08]
[1754442051940,4.74695198,3575.9,3575.8,0.91300001]
[1754442052135,7.54345076,3575.9,3575.8,1e-08]
[1754442052462,4.74695198,3575.9,3575.8,0.91300001]
[1754442054079,4.74795198,3575.9,3575.8,0.91300001]
[1754442054386,4.74797755,3575.9,3575.8,0.91300001]
[1754442054588,4.74797755,3575.9,3575.8,4.08054803]
[1754442054794,4.491,3575.9,3575.8,4.08054803]
[1754442055162,4.491,3575.9,3575.8,1.28397105]
[1754442055458,4.491,3575.9,3575.8,1e-08]
[1754442055672,8.29365049,3575.9,3575.8,1e-08]
[1754442056208,8.72315049,3575.9,3575.8,1e-08]
[1754442057119,8.46619878,3575.9,3575.8,1e-08]
[1754442057311,8.72310217,3575.9,3575.8,1e-08]
[1754442057474,9.87505328,3575.9,3575.8,1e-08]
[1754442057811,9.87505651,3575.9,3575.8,1e-08]
[1754442058011,4.74790662,3575.9,3575.8,1e-08]
[1754442058177,4.74790662,3575.9,3575.8,0.46300001]
[1754442058602,4.74790662,3575.9,3575.8,1e-08]
[1754442058603,7.5444054,3575.9,3575.8,1e-08]
[1754442059102,8.57848023,3575.9,3575.8,1e-08]
[1754442060417,0.25790662,3575.9,3575.8,0.46300001]
[1754442060585,0.25790662,3575.9,3575.8,3.70957699]
[1754442060586,0.141,3575.9,3575.8,3.70957699]
[1754442062910,0.141,3575.9,3575.8,3.25957699]
[1754442063346,0.141,3575.9,3575.8,0.46300001]
[1754442063524,0.141,3575.9,3575.8,3.25957699]
[1754442063841,5.2382,3575.9,3575.8,1e-08]
[1754442064250,4.489,3575.9,3575.8,1e-08]
[1754442065211,4.489,3575.9,3575.8,2.79657699]
[1754442065433,4.489,3575.9,3575.8,1e-08]
[1754442065619,6.1166,3575.9,3575.8,1e-08]
[1754442066339,8.46419878,3575.9,3575.8,1e-08]
[1754442068588,7.11619878,3575.9,3575.8,1e-08]
[1754442068754,11.72044268,3575.9,3575.8,1e-08]
[1754442069993,12.27044268,3575.9,3575.8,1e-08]
[1754442070193,12.13044268,3575.9,3575.8,1e-08]
[1754442070492,13.23418391,3575.9,3575.8,1e-08]
[1754442070858,12.80468391,3575.9,3575.8,1e-08]
[1754442071188,7.40174268,3575.9,3575.8,1e-08]
[1754442071502,4.348,3575.9,3575.8,1e-08]
[1754442071875,4.348,3575.9,3575.8,0.45000001]
[1754442072050,4.348,3575.9,3575.8,3.70957699]
[1754442072500,4.348,3575.9,3575.8,0.91300001]
[1754442072802,4.348,3575.9,3575.8,3.70957699]
[1754442073002,4.348,3575.9,3575.8,0.91300001]
[1754442073299,4.60535139,3575.9,3575.8,1e-08]
[1754442073711,4.348,3575.9,3575.8,1e-08]
[1754442075612,7.40212109,3575.9,3575.8,1e-08]
[1754442075761,9.84187382,3575.9,3575.8,1e-08]
[1754442076055,2.24197504,3575.9,3575.8,1e-08]
[1754442076262,4.60461645,3575.9,3575.8,1e-08]
[1754442076671,8.13061523,3575.9,3575.8,1e-08]
[1754442077382,8.58701523,3575.9,3575.8,1e-08]
[1754442078389,8.13061523,3575.9,3575.8,1e-08]
[1754442079478,8.58706539,3575.9,3575.8,1e-08]
[1754442080066,8.72706539,3575.9,3575.8,1e-08]
[1754442080414,10.04046913,3575.9,3575.8,1e-08]
[1754442081202,13.04046913,3575.9,3575.8,1e-08]
[1754442081697,13.59046913,3575.9,3575.8,1e-08]
[1754442082085,13.64596913,3575.9,3575.8,1e-08]
[1754442083910,24.49169313,3575.9,3575.8,1e-08]
[1754442088190,24.60368713,3575.9,3575.8,1e-08]
[1754442088394,24.6027522,3575.9,3575.8,1e-08]
[1754442094871,27.5497522,3575.9,3575.8,1e-08]
[1754442095041,24.6027522,3575.9,3575.8,1e-08]
[1754442095676,34.7097522,3575.9,3575.8,1e-08]
[1754442095873,3.34681163,3575.5,3575.4,1e-08]
[1754442096037,21.82922745,3575.5,3575.4,1e-08]
[1754442096242,23.68392001,3575.5,3575.4,1e-08]
[1754442096599,23.79593301,3575.5,3575.4,1e-08]
[1754442096761,12.49380901,3575.5,3575.4,1e-08]
[1754442097086,15.37212607,3575.5,3575.4,1e-08]
[1754442098285,15.37212607,3575.5,3574.7,1e-08]
[1754442098286,5.79735929,3574.8,3574.7,1e-08]
[1754442098446,10.97854477,3574.8,3574.7,1e-08]
[1754442099745,10.97850059,3574.8,3574.7,1e-08]
[1754442100195,12.71440059,3574.8,3574.7,1e-08]
[1754442103209,23.55802459,3574.8,3574.7,1e-08]
[1754442104101,23.67232458,3574.8,3574.7,1e-08]
[1754442105460,23.41591921,3574.8,3574.7,1e-08]
[1754442105667,23.67236674,3574.8,3574.7,1e-08]
[1754442106261,23.67234924,3574.8,3574.7,1e-08]
[1754442107398,23.63474924,3574.8,3574.7,1e-08]
[1754442108077,23.88678624,3574.8,3574.7,1e-08]
[1754442115990,23.43248624,3574.8,3574.7,1e-08]
[1754442116718,23.88678624,3574.8,3574.7,1e-08]
[1754442117398,23.88697843,3574.8,3574.7,1e-08]
[1754442118813,31.04697843,3574.8,3574.7,1e-08]
[1754442120407,37.76497843,3574.8,3574.7,1e-08]
[1754442122105,36.58129091,3574.8,3574.7,1e-08]
[1754442122277,37.26469091,3574.8,3574.7,1e-08]
[1754442122481,37.71899091,3574.8,3574.7,1e-08]
[1754442122692,53.70076361,3574.8,3574.7,1e-08]
[1754442123332,32.23629091,3574.8,3574.7,1e-08]
[1754442123618,32.23629091,3574.8,3574.7,0.84240001]
[1754442123619,24.49079398,3574.8,3574.7,0.84240001]
[1754442123925,24.49079398,3574.8,3574.7,1e-08]
[1754442124100,24.37649399,3574.8,3574.7,1e-08]
[1754442124424,24.92649399,3574.8,3574.7,1e-08]
[1754442125010,24.66975929,3574.8,3574.7,1e-08]
[1754442125250,27.65530569,3574.8,3574.7,1e-08]
[1754442125547,28.33870569,3574.8,3574.7,1e-08]
[1754442125748,27.65608892,3574.8,3574.7,1e-08]
[1754442125948,24.37742706,3574.8,3574.7,0.84240001]
[1754442126512,24.37742706,3574.8,3574.7,0.44380001]
[1754442127225,24.37742706,3574.8,3574.7,1e-08]
[1754442127823,20.03542706,3574.8,3574.7,1e-08]
[1754442128063,17.27596009,3574.8,3574.7,0.84240001]
[1754442128212,24.41431938,3574.8,3574.7,0.84240001]
[1754442128412,20.07331938,3574.8,3574.7,0.84240001]
[1754442128749,24.41431938,3574.8,3574.7,0.84240001]
[1754442128952,21.61696009,3574.8,3574.7,0.84240001]
[1754442129156,17.27596009,3574.8,3574.7,0.84240001]
[1754442129453,18.61696009,3574.8,3574.7,0.84240001]
[1754442129612,17.27596009,3574.8,3574.7,0.84240001]
[1754442129812,21.61696009,3574.8,3574.7,0.84240001]
[1754442130111,24.41431938,3574.8,3574.7,1e-08]
[1754442130315,27.7179771,3574.8,3574.7,1e-08]
[1754442130547,28.7222771,3574.8,3574.7,1e-08]
[1754442131216,28.2679771,3574.8,3574.7,1e-08]
[1754442132561,27.5845771,3574.8,3574.7,1e-08]
[1754442134538,21.61596009,3574.8,3574.7,0.86840001]
[1754442135436,14.27596009,3574.8,3574.7,0.86840001]
[1754442135655,18.61496009,3574.8,3574.7,0.86840001]
[1754442136249,26.09391938,3574.8,3574.7,1e-08]
[1754442136452,28.13424118,3574.8,3574.7,1e-08]
[1754442137159,27.70384118,3574.8,3574.7,1e-08]
[1754442137565,20.07331938,3574.8,3574.7,1e-08]
[1754442137726,21.61496009,3574.8,3574.7,1e-08]
[1754442137922,21.61496009,3574.8,3574.7,0.46980001]
[1754442138128,21.61496009,3574.8,3574.7,0.86840001]
[1754442139262,24.41231938,3574.8,3574.7,1e-08]
[1754442139572,10.53413503,3574.8,3574.7,1e-08]
[1754442140075,7.73677574,3574.8,3574.7,1e-08]
[1754442140236,7.73676406,3574.8,3574.7,1e-08]
[1754442140426,10.53412335,3574.8,3574.7,1e-08]
[1754442141245,13.79780268,3574.8,3574.7,1e-08]
[1754442142361,13.79780268,3574.8,3574.7,19.62261025]
[1754442142362,0.25776406,3574.8,3574.7,19.62261025]
[1754442142556,6.12625787,3574.9,3574.8,2.79735929]
[1754442142861,6.38418908,3574.9,3574.8,0.8434]
[1754442143168,6.38418908,3574.9,3574.7,1e-08]
[1754442143480,0.25793121,3574.8,3574.7,0.46980001]
[1754442143638,4.59593121,3574.8,3574.7,1e-08]
[1754442144038,8.0944905,3574.8,3574.7,1e-08]
[1754442144369,5.29713121,3574.8,3574.7,1e-08]
[1754442144588,4.59593121,3574.8,3574.7,1e-08]
[1754442144931,7.3932905,3574.8,3574.7,1e-08]
[1754442145138,9.3452494,3574.8,3574.7,1e-08]
[1754442145339,13.06771819,3574.8,3574.7,1e-08]
[1754442145583,13.32559839,3574.8,3574.7,1e-08]
[1754442146185,13.32559839,3574.8,3574.3,0.002]
[1754442146186,3.34767233,3574.4,3574.3,0.002]
[1754442146370,11.89204864,3574.4,3574.3,0.002]
[1754442146558,11.85707774,3574.4,3574.3,0.002]
[1754442146762,12.98867774,3574.4,3574.3,0.002]
[1754442147249,6.97007774,3574.4,3574.3,0.002]
[1754442147462,7.5948802,3574.4,3574.3,0.002]
[1754442147666,10.39255253,3574.4,3574.3,0.002]
[1754442147971,3.2578802,3574.4,3574.3,0.002]
[1754442148183,7.5948802,3574.4,3574.3,0.4718]
[1754442148383,7.5948802,3574.4,3574.3,0.002]
[1754442148384,10.39255253,3574.4,3574.3,0.002]
[1754442148552,7.5948802,3574.4,3574.3,0.002]
[1754442148884,11.09375253,3574.4,3574.3,0.002]
[1754442149105,12.84314714,3574.4,3574.3,0.002]
[1754442149402,7.37454714,3574.4,3574.3,0.002]
[1754442149700,12.84314714,3574.4,3574.3,0.002]
[1754442150879,12.41274714,3574.4,3574.3,0.002]
[1754442151254,7.5948802,3574.4,3574.3,0.002]
[1754442151798,0.2578802,3574.4,3574.3,0.8454]
[1754442151951,4.5948802,3574.4,3574.3,3.6431506]
[1754442152778,4.7348802,3574.4,3574.3,3.6431506]
[1754442153499,4.7348802,3574.4,3574.3,4.29164978]
[1754442154094,4.73495977,3574.4,3574.3,4.29164978]
[1754442154596,4.477,3574.4,3574.3,4.29164978]
[1754442155108,0.14,3574.4,3574.3,4.29164978]
[1754442157168,1.78825787,3574.9,3574.7,2.79743754]
[1754442157373,4.336,3574.8,3574.7,2.79743754]
[1754442157698,0.14,3574.8,3574.7,2.79743754]
[1754442157893,0.14,3574.8,3574.7,3.64083754]
[1754442159611,0.14,3574.8,3574.7,2.79743754]
[1754442160108,0.14,3574.8,3574.7,3.62503754]
[1754442160416,0.14,3574.8,3574.7,3.9808089]
[1754442161111,4.476,3574.8,3574.7,4.3386089]
[1754442161826,0.14,3574.8,3574.7,4.3386089]
[1754442161972,4.476,3574.8,3574.7,4.3386089]
[1754442163417,4.477,3574.8,3574.7,4.3386089]
[1754442164191,4.477,3574.8,3574.7,3.9808089]
[1754442164426,4.477,3574.8,3574.7,2.79743754]
[1754442165341,4.477,3574.8,3574.7,3.58553754]
[1754442166396,0.141,3574.8,3574.7,3.58553754]
[1754442166595,0.001,3574.8,3574.7,3.58553754]
[1754442168343,0.001,3574.8,3574.7,2.79743754]
[1754442168499,0.141,3574.8,3574.7,2.79743754]
[1754442168844,0.141,3574.8,3574.7,3.70820152]
[1754442169541,0.141,3574.8,3574.7,4.13850152]
[1754442169696,0.141,3574.8,3574.7,3.70820152]
[1754442170196,0.001,3574.8,3574.7,4.49630152]
[1754442171158,0.001,3574.8,3574.7,3.70820152]
[1754442171301,0.141,3574.8,3574.7,2.79743754]
[1754442171500,0.8382,3574.8,3574.7,2.79743754]
[1754442172422,0.141,3574.8,3574.7,2.79743754]
[1754442172611,0.141,3574.8,3574.7,3.22773754]
[1754442173428,0.001,3575.2,3575.1,2.79712455]
[1754442173636,0.001,3575.2,3575.1,3.63629412]
[1754442174523,0.001,3575.2,3575.1,4.06659412]
[1754442174703,0.001,3575.2,3575.1,4.41559412]
[1754442174905,0.001,3575.2,3575.1,8.74859412]
[1754442175506,1e-08,3575.6,3575.5,2.79681163]
[1754442175906,1e-08,3575.6,3575.5,3.71611163]
[1754442176105,1e-08,3575.6,3575.5,6.71611163]
[1754442176419,1e-08,3575.6,3575.5,7.26611163]
[1754442176612,1e-08,3575.6,3575.5,7.97926073]
[1754442180942,1e-08,3575.9,3575.8,5.79657698]
[1754442181138,0.001,3576.7,3576.5,2.79602963]
[1754442181341,0.001,3576.7,3576.6,2.79595146]
[1754442181541,0.4698,3576.7,3576.6,3.63512103]
[1754442181919,0.001,3576.7,3576.6,3.63512103]
[1754442182115,1e-08,3576.7,3576.6,4.06542103]
[1754442182304,1e-08,3576.7,3576.6,4.20542103]
[1754442182501,1e-08,3576.7,3576.6,4.55442103]
[1754442183206,1e-08,3576.9,3576.8,2.79579512]
[1754442183463,1e-08,3576.9,3576.8,8.1029801]
[1754442183952,1e-08,3576.9,3576.8,8.2429801]
[1754442184515,0.69720001,3576.9,3576.8,8.1029801]
[1754442184913,1e-08,3576.9,3576.8,8.1029801]
[1754442185869,0.69720001,3576.9,3576.8,3.7719801]
[1754442186030,0.83720001,3576.9,3576.8,7.12679512]
[1754442186619,0.83720001,3576.9,3576.8,2.79579512]
[1754442186855,0.83720001,3576.9,3576.8,7.12679512]
[1754442187051,0.14000001,3576.9,3576.8,7.12679512]
[1754442187251,0.14000001,3576.9,3576.8,8.7825897]
[1754442187520,1e-08,3576.9,3576.8,8.7825897]
[1754442187715,1e-08,3576.9,3576.8,9.2715897]
[1754442188258,1e-08,3577.0,3576.9,2.79571696]
[1754442189336,1e-08,3577.0,3576.9,6.34571696]
[1754442189561,1e-08,3577.0,3576.9,7.21842603]
[1754442190848,1e-08,3577.0,3576.9,7.56742603]
[1754442191384,1e-08,3577.0,3576.9,7.21842603]
[1754442192068,1e-08,3577.0,3576.9,7.70742603]
[1754442192268,1e-08,3577.5,3577.4,2.79532621]
[1754442192468,0.04,3577.9,3577.8,2.79501369]
[1754442192633,0.04,3577.9,3577.8,7.12401369]
[1754442193776,0.04,3577.9,3577.8,7.67401369]
[1754442194083,0.04,3577.9,3577.8,7.81401369]
[1754442194640,0.04,3577.9,3577.8,7.26401369]
[1754442194974,0.6989,3577.9,3577.8,8.36073411]
[1754442195278,0.6989,3577.9,3577.8,0.14]
[1754442195568,0.6989,3577.9,3577.7,2.79509085]
[1754442195569,0.8389,3577.9,3577.7,2.79509085]
[1754442195774,0.14,3577.8,3577.6,2.79516744]
[1754442195972,0.14,3577.7,3577.6,2.79516744]
[1754442196162,0.7989,3577.7,3577.6,2.79516744]
[1754442197479,0.14,3577.7,3577.6,3.78701623]
[1754442197853,0.14,3577.7,3577.6,8.11501623]
[1754442198072,0.04,3577.9,3577.8,2.79501369]
[1754442198268,0.04,3577.9,3577.8,7.12301369]
[1754442200543,1.139,3577.9,3577.8,7.12301369]
[1754442201379,1.139,3577.9,3577.5,0.14]
[1754442201584,1.50639054,3577.8,3575.8,7.1496]
[1754442201778,1.50639054,3577.8,3577.1,2.79553888]
[1754442201779,2.79501854,3577.8,3577.1,2.79553888]
[1754442201984,1.099,3577.7,3577.0,2.79561902]
[1754442202184,1.099,3577.6,3577.0,2.79561902]
[1754442202484,3.89431185,3577.5,3576.9,4.328]
[1754442202703,1.099,3577.4,3576.9,4.328]
[1754442202897,2.79531185,3577.5,3576.9,7.12370684]
[1754442203103,1.099,3577.3,3576.9,7.12370684]
[1754442203398,1.099,3577.2,3576.9,7.12370684]
[1754442203553,2.79519609,3577.6,3576.9,7.12370684]
[1754442203749,1.099,3577.1,3577.0,2.7956388]
[1754442203949,0.6589,3577.1,3577.0,2.7956388]
[1754442205070,0.6589,3577.4,3577.3,2.79540435]
[1754442205881,0.4401,3577.6,3577.5,2.79524807]
[1754442206175,0.6589,3577.8,3577.7,2.79508624]
[1754442206488,0.4401,3577.8,3577.7,2.79509181]
[1754442206989,1.099,3577.8,3577.7,2.79509181]
[1754442207456,0.6589,3577.8,3577.7,2.79509181]
[1754442207857,0.04,3577.9,3577.8,2.79501369]
[1754442209104,0.04,3577.9,3577.8,7.12301369]
[1754442209794,0.04,3577.9,3577.8,11.43841369]
[1754442209971,1e-08,3577.9,3577.8,11.43841369]
[1754442211066,1e-08,3578.3,3578.2,3.34470124]
[1754442211264,0.001,3578.6,3578.2,3.34470124]
[1754442211265,0.001,3578.6,3578.5,2.79446695]
[1754442211492,0.001,3578.6,3578.5,7.12146695]
[1754442211690,0.001,3578.8,3578.6,5.79438886]
[1754442211980,1e-08,3579.0,3578.9,3.34415462]
[1754442212181,0.4801,3579.9,3578.9,3.34415462]
[1754442212182,1e-08,3579.4,3579.3,5.79384237]
[1754442212505,1e-08,3579.4,3579.3,11.25022661]
[1754442214218,1e-08,3579.4,3579.3,11.68882661]
[1754442214414,1e-08,3579.4,3579.3,11.25022661]
[1754442214590,1e-08,3579.4,3579.3,6.92322661]
[1754442214798,1e-08,3579.4,3579.3,11.24922661]
[1754442215678,1e-08,3579.4,3579.3,11.38922661]
[1754442215879,1e-08,3579.4,3579.3,11.82782661]
[1754442216077,1e-08,3579.4,3579.3,12.15462661]
[1754442216816,0.04,3579.9,3579.3,12.15462661]
[1754442216817,1e-08,3579.7,3579.6,3.34360822]
[1754442217019,1e-08,3579.7,3579.6,11.93460087]
[1754442217318,0.7989,3580.4,3580.3,2.79306203]
[1754442217615,0.7989,3580.4,3580.3,7.11906203]
[1754442217988,1.239,3580.4,3580.3,7.11906203]
[1754442218965,0.14,3580.4,3580.3,7.11906203]
[1754442219247,0.14,3580.4,3580.3,7.94318879]
[1754442219621,0.001,3580.6,3580.4,2.79298402]
[1754442219828,0.001,3580.6,3580.4,7.11798402]
[1754442220028,0.141,3580.5,3580.4,7.11798402]
[1754442220209,1.24,3580.5,3580.4,7.11798402]
[1754442221757,1.24,3580.5,3580.4,2.79298402]
[1754442222456,1.24,3580.5,3579.6,1.12499265]
[1754442222674,1.1576,3580.4,3580.3,2.79299384]
[1754442223158,1.2976,3580.4,3580.3,2.79299384]
[1754442223559,0.8269,3580.4,3580.3,2.79299384]
[1754442223855,0.8269,3580.4,3580.3,7.11699384]
[1754442224156,0.8269,3580.4,3580.3,8.38732355]
[1754442224351,0.14,3580.4,3580.3,8.38732355]
[1754442224958,0.001,3580.5,3580.4,2.79298402]
[1754442226069,0.001,3580.5,3580.4,5.79298402]
[1754442226587,0.6869,3581.0,3580.8,2.79267202]
[1754442226588,0.14,3581.0,3580.8,2.79267202]
[1754442226952,0.14,3581.1,3580.8,3.63050595]
[1754442227557,1e-08,3580.9,3580.8,6.63050595]
[1754442227757,1e-08,3580.9,3580.8,7.06190595]
[1754442227955,1e-08,3580.9,3580.8,7.38870595]
[1754442228493,1e-08,3581.2,3581.1,2.79243807]
[1754442228666,1e-08,3581.2,3581.1,11.08577808]
[1754442228864,1e-08,3581.2,3581.1,11.22577808]
[1754442229270,1.15760001,3581.2,3581.1,6.21277808]
[1754442229475,1.15760001,3581.2,3581.1,10.11543807]
[1754442229764,1.15760001,3581.2,3581.1,7.11543807]
[1754442229983,1.29760001,3581.2,3581.1,7.11543807]
[1754442230179,1.29760001,3581.2,3581.1,2.79243807]
[1754442232965,1.29760001,3581.2,3581.1,7.11443807]
[1754442234113,1.29760001,3581.2,3581.1,2.79243807]
[1754442234416,1.29760001,3581.2,3581.1,7.11443807]
[1754442239702,0.82690001,3581.2,3581.1,7.11443807]
[1754442240412,1.29760001,3581.2,3581.1,2.79243807]
[1754442240613,1.29760001,3581.2,3581.1,7.11343807]
[1754442241286,1.29760001,3581.2,3581.1,2.79243807]
[1754442241494,1.29760001,3581.2,3581.1,7.11343807]
[1754442242703,1e-08,3581.2,3581.1,8.1161945]
[1754442243015,1e-08,3581.2,3581.1,9.4015945]
[1754442243194,1e-08,3581.2,3581.1,9.5415945]
[1754442243394,1e-08,3581.2,3581.1,9.2375945]
[1754442243709,1e-08,3581.2,3581.1,9.5415945]
[1754442243923,1e-08,3581.2,3581.1,4.4851945]
[1754442244109,1e-08,3581.2,3581.1,2.79243807]
[1754442244306,1.29760001,3581.2,3581.1,7.11343807]
[1754442244804,1.29760001,3581.2,3581.1,4.321]
[1754442245003,1.29760001,3581.2,3580.9,0.1216]
[1754442245330,0.14,3581.0,3580.9,0.1216]
[1754442245708,1.2976,3581.0,3580.9,0.1216]
[1754442246410,0.8269,3581.0,3580.9,2.91419404]
[1754442247330,0.14,3581.0,3580.9,2.91419404]
[1754442248332,1.2976,3581.0,3580.9,0.1216]
[1754442248535,4.78734016,3581.0,3580.9,0.1216]
[1754442248743,4.82224661,3581.0,3580.9,0.1216]
[1754442248893,4.78734016,3581.0,3580.9,0.1216]
[1754442249233,1.99482411,3581.0,3580.9,0.1216]
[1754442249412,4.78734016,3581.0,3580.9,0.1216]
[1754442249612,1.99482411,3581.0,3580.9,0.1216]
[1754442249935,1.55645325,3581.0,3580.9,0.1216]
[1754442250334,1.2976,3581.0,3580.9,0.1216]
[1754442250498,1.55648127,3581.0,3580.9,0.1216]
[1754442250694,0.39888127,3581.0,3580.9,2.91419404]
[1754442250947,0.141,3581.0,3580.9,2.91419404]
[1754442251436,0.001,3581.0,3580.9,8.23808193]
[1754442251599,0.001,3581.0,3580.9,8.97348193]
[1754442252339,1e-08,3581.2,3581.1,2.79243807]
[1754442252545,1e-08,3581.2,3581.1,10.25243807]
[1754442252720,1e-08,3581.4,3581.3,5.79228213]
[1754442252897,1e-08,3581.4,3581.3,11.63003415]
[1754442253102,1e-08,3581.4,3581.3,12.36283415]
[1754442254601,1e-08,3581.4,3581.3,12.05883415]
[1754442254945,1e-08,3581.4,3581.3,11.63003415]
[1754442259248,1e-08,3581.4,3581.3,11.62903415]
[1754442261250,1e-08,3581.4,3581.3,7.31003415]
[1754442261473,1e-08,3581.4,3581.3,11.62903415]
[1754442262260,1e-08,3581.4,3581.3,11.48903415]
[1754442267677,0.1392,3581.8,3581.3,11.48903415]
[1754442267678,1e-08,3581.8,3581.7,2.79197029]
[1754442267845,1e-08,3581.8,3581.7,10.10997029]
[1754442268039,1e-08,3581.8,3581.7,10.53877029]
[1754442268477,0.04,3581.9,3581.8,5.79189234]
[1754442269077,0.7076,3581.9,3581.8,5.79189234]
[1754442269252,0.7076,3581.9,3581.8,7.16964436]
[1754442269453,0.7076,3581.9,3581.8,2.79189234]
[1754442269454,1.1582,3581.9,3581.8,2.79189234]
[1754442269778,1.2974,3581.9,3580.9,2.91413475]
[1754442269999,0.14,3581.4,3581.1,3.0]
[1754442270174,0.14,3581.4,3581.3,3.0]
[1754442270344,0.14,3581.4,3581.3,6.80333374]
[1754442270681,0.5906,3581.4,3581.3,11.12133374]
[1754442270877,1.2582,3581.4,3581.3,11.12133374]
[1754442272068,1.2582,3581.4,3581.3,7.11028213]
[1754442272584,0.04,3581.9,3581.8,2.79189234]
[1754442272787,0.04,3581.9,3581.8,7.10989234]
[1754442273091,0.04,3581.9,3581.8,7.53869234]
[1754442273586,0.04,3581.9,3581.8,10.53869234]
[1754442273985,0.04,3581.9,3581.8,11.91382973]
[1754442274859,0.04,3581.9,3581.8,11.48502973]
[1754442275267,0.04,3581.9,3581.8,11.91382973]
[1754442276604,0.001,3582.0,3581.9,6.3418144]
[1754442276902,0.1392,3583.0,3582.8,2.79111309]
[1754442277065,0.6676,3583.1,3582.8,7.66634486]
[1754442277271,0.6676,3583.3,3582.8,8.35554486]
[1754442277494,0.6676,3583.3,3582.8,11.35554486]
[1754442278205,0.1392,3583.6,3582.8,12.06584486]
[1754442278411,0.6676,3583.8,3582.8,12.73344486]
[1754442279040,0.6676,3583.8,3582.8,12.73244486]